bitfinex-derivatives/quotes_SOLF0:USTF0_20260310
["timestamp","ask_amount","ask_price","bid_price","bid_amount"]
[1773149775990,8.83585941,86.449,86.383,10.418]
[1773149776596,8.82464969,86.429,86.372,10.419]
[1773149777090,8.82464969,86.429,86.321,14.20372885]
[1773149777091,8.82464969,86.429,86.362,10.42]
[1773149778292,8.82464969,86.429,86.33,9.18085437]
[1773149778293,8.82464969,86.429,86.371,10.419]
[1773149778500,8.82972002,86.449,86.35,9.18085437]
[1773149778797,8.82972002,86.449,86.39,10.417]
[1773149779091,8.82972002,86.449,86.35,9.18085437]
[1773149779501,8.82972002,86.449,86.352,20.843]
[1773149779695,8.82972002,86.449,86.35,9.18085437]
[1773149780400,8.82721041,86.447,86.35,9.18085437]
[1773149780897,10.412,86.427,86.361,10.42]
[1773149781201,8.82721041,86.426,86.361,10.42]
[1773149781597,9.18085437,86.45,86.285,162.243]
[1773149781598,8.82721041,86.409,86.304,298.0]
[1773149781800,8.82721041,86.409,86.3,9.18085437]
[1773149781998,8.82721041,86.409,86.298,20.856]
[1773149781999,8.82721041,86.409,86.352,10.421]
[1773149782295,8.82721041,86.409,86.32,9.18085437]
[1773149783695,9.18085437,86.42,86.32,9.18085437]
[1773149783899,8.82288728,86.429,86.365,10.42]
[1773149784099,8.82288728,86.429,86.3,14.20372885]
[1773149784100,8.82288728,86.429,86.299,14.20372885]
[1773149784300,8.82139961,86.399,86.3,9.18085437]
[1773149784601,8.82139961,86.396,86.3,9.18085437]
[1773149785004,8.82139961,86.379,86.28,9.18085437]
[1773149785197,161.963,86.436,86.23,14.23029334]
[1773149785198,8.82139961,86.349,86.23,14.23029334]
[1773149785396,8.82139961,86.349,86.25,9.18085437]
[1773149785600,8.82139961,86.371,86.28,9.18085437]
[1773149785899,8.82139961,86.371,86.22,9.18085437]
[1773149785900,8.82139961,86.359,86.26,9.18085437]
[1773149786103,8.80412493,86.357,86.282,10.43]
[1773149786300,8.80412493,86.357,86.26,9.18085437]
[1773149787098,8.80412493,86.346,86.26,9.18085437]
[1773149787601,8.80412493,86.337,86.261,10.432]
[1773149787798,8.80412493,86.319,86.223,888.47775426]
[1773149787993,8.80412493,86.319,86.24,9.18085437]
[1773149788193,8.71155971,86.342,86.289,10.429]
[1773149788497,8.71155971,86.342,86.26,9.18085437]
[1773149788694,8.71155971,86.342,86.295,10.428]
[1773149788900,8.71155971,86.342,86.246,20.869]
[1773149789202,8.71155971,86.342,86.27,9.18085437]
[1773149789401,8.71155971,86.364,86.29,9.18085437]
[1773149790403,8.71155971,86.364,86.27,9.18085437]
[1773149790698,8.72392811,86.363,86.297,10.428]
[1773149790903,8.72392811,86.363,86.27,9.18085437]
[1773149791700,8.72392811,86.363,86.29,9.18085437]
[1773149792099,9.18085437,86.36,86.27,9.18085437]
[1773149792305,9.18085437,86.36,86.26,9.18085437]
[1773149792306,8.72668269,86.355,86.26,9.18085437]
[1773149792804,8.72668269,86.355,86.299,10.428]
[1773149793004,8.72668269,86.355,86.26,9.18085437]
[1773149793509,8.72668269,86.337,86.274,10.431]
[1773149793803,8.72668269,86.337,86.26,9.18085437]
[1773149794308,8.72668269,86.337,86.274,10.431]
[1773149795512,8.71936214,86.335,86.282,10.43]
[1773149795707,8.71936214,86.335,86.24,9.18085437]
[1773149796607,8.71936214,86.335,86.279,10.43]
[1773149796910,8.71936214,86.335,86.26,9.18085437]
[1773149797313,8.71936214,86.335,86.298,10.428]
[1773149797610,8.7027233,86.359,86.28,9.18085437]
[1773149798412,8.70815494,86.389,86.28,9.18085437]
[1773149798607,8.70815494,86.385,86.27,9.18085437]
[1773149799222,8.70815494,86.362,86.27,9.18085437]
[1773149799416,8.70815494,86.359,86.27,9.18085437]
[1773149799810,8.70815494,86.359,86.29,9.18085437]
[1773149800111,8.71683029,86.379,86.29,9.18085437]
[1773149800316,8.71683029,86.379,86.31,9.18085437]
[1773149800517,8.71683029,86.401,86.29,9.18085437]
[1773149800811,8.71683029,86.399,86.31,9.18085437]
[1773149801017,8.71683029,86.399,86.33,9.18085437]
[1773149801211,8.71683029,86.399,86.353,10.421]
[1773149801817,8.71683029,86.399,86.362,10.42]
[1773149802124,8.71683029,86.399,86.33,9.18085437]
[1773149802317,8.72294702,86.429,86.33,9.18085437]
[1773149802519,8.72294702,86.429,86.29,9.18085437]
[1773149802520,8.72294702,86.409,86.32,9.18085437]
[1773149803314,8.72294702,86.409,86.29,9.18085437]
[1773149803718,20.822,86.443,86.29,9.18085437]
[1773149803719,8.72294702,86.378,86.29,9.18085437]
[1773149804620,8.72406085,86.364,86.299,10.428]
[1773149804917,8.72406085,86.364,86.27,9.18085437]
[1773149805307,9.18085437,86.37,86.27,9.18085437]
[1773149805308,8.72406085,86.35,86.27,9.18085437]
[1773149805513,8.72406085,86.349,86.25,9.18085437]
[1773149805817,8.72406085,86.348,86.289,10.429]
[1773149806122,8.72406085,86.348,86.27,9.18085437]
[1773149806320,8.72406085,86.348,86.289,10.429]
[1773149806521,8.72406085,86.348,86.27,9.18085437]
[1773149806924,8.70642909,86.347,86.285,10.429]
[1773149807116,8.70642909,86.347,86.27,9.18085437]
[1773149808121,8.70642909,86.347,86.288,10.429]
[1773149808419,8.69616226,86.369,86.29,9.18085437]
[1773149808924,8.69616226,86.369,86.313,10.426]
[1773149809219,8.69616226,86.369,86.29,9.18085437]
[1773149809521,8.69616226,86.369,86.27,9.18085437]
[1773149809722,8.69616226,86.358,86.302,10.427]
[1773149809922,8.69616226,86.358,86.27,9.18085437]
[1773149810422,8.69616226,86.358,86.29,9.18085437]
[1773149810623,8.6975466,86.389,86.29,9.18085437]
[1773149810926,8.6975466,86.378,86.32,10.425]
[1773149811417,8.6975466,86.376,86.29,9.18085437]
[1773149811618,8.6975466,86.376,86.311,10.426]
[1773149811822,8.6975466,86.376,86.29,9.18085437]
[1773149812625,8.70871351,86.375,86.29,9.18085437]
[1773149812928,8.70871351,86.375,86.31,9.18085437]
[1773149813128,8.70871351,86.375,86.328,10.424]
[1773149813328,8.70871351,86.375,86.29,9.18085437]
[1773149813529,8.70871351,86.399,86.31,9.18085437]
[1773149813723,8.70871351,86.396,86.338,10.423]
[1773149813923,8.70871351,86.396,86.31,9.18085437]
[1773149814127,8.77608945,86.381,86.328,10.424]
[1773149814327,8.77608945,86.381,86.29,9.18085437]
[1773149814328,8.77608945,86.381,86.31,9.18085437]
[1773149814724,8.77608945,86.376,86.29,9.18085437]
[1773149815327,8.77608945,86.376,86.328,10.424]
[1773149815635,8.77608945,86.376,86.29,9.18085437]
[1773149816027,8.77608945,86.376,86.29,14.18085437]
[1773149816729,8.77608945,86.376,86.297,20.856]
[1773149817932,8.77608945,86.376,86.29,9.18085437]
[1773149819533,8.77554862,86.374,86.29,9.18085437]
[1773149820035,8.77554862,86.374,86.293,20.857]
[1773149820233,8.77554862,86.374,86.31,9.18085437]
[1773149820634,8.77554862,86.374,86.29,9.18085437]
[1773149821035,8.74976113,86.373,86.29,9.18085437]
[1773149821735,8.74976113,86.373,86.316,10.426]
[1773149821941,8.74976113,86.373,86.29,9.18085437]
[1773149822540,8.74976113,86.373,86.325,10.425]
[1773149822844,8.74976113,86.373,86.29,9.18085437]
[1773149822845,8.75072852,86.409,86.32,9.18085437]
[1773149823143,8.75072852,86.406,86.345,10.422]
[1773149823534,8.75072852,86.406,86.34,9.18085437]
[1773149823731,8.75072852,86.406,86.279,28.38128905]
[1773149823732,8.75072852,86.429,86.36,9.18085437]
[1773149824242,8.75072852,86.429,86.334,14.19064452]
[1773149824243,8.75072852,86.429,86.34,9.18085437]
[1773149824836,10.414,86.415,86.36,10.42]
[1773149825040,10.414,86.415,86.34,9.18085437]
[1773149825041,8.73907517,86.389,86.297,14.19064452]
[1773149825240,8.73907517,86.389,86.298,14.19064452]
[1773149825436,8.73907517,86.389,86.265,162.281]
[1773149825437,8.73907517,86.389,86.31,9.18085437]
[1773149826042,8.73907517,86.389,86.3,14.19064452]
[1773149826340,8.73907517,86.389,86.308,14.19064452]
[1773149826535,8.73907517,86.389,86.348,10.422]
[1773149827341,8.73907517,86.389,86.294,14.19064452]
[1773149827542,8.73907517,86.389,86.32,9.18085437]
[1773149827745,8.73907517,86.389,86.363,10.42]
[1773149827942,8.73907517,86.389,86.321,20.851]
[1773149828145,8.73907517,86.389,86.32,9.18085437]
[1773149828146,8.71314351,86.429,86.34,9.18085437]
[1773149828446,8.71314351,86.429,86.32,9.18085437]
[1773149828640,8.71314351,86.409,86.31,9.18085437]
[1773149829043,8.71314351,86.395,86.31,9.18085437]
[1773149829643,8.71314351,86.395,86.313,20.853]
[1773149830045,8.71314351,86.395,86.31,9.18085437]
[1773149830248,8.71314351,86.395,86.314,20.852]
[1773149830448,8.71314351,86.395,86.31,9.18085437]
[1773149830449,8.71314351,86.395,86.33,9.18085437]
[1773149831246,8.71807219,86.429,86.33,9.18085437]
[1773149831744,8.71807219,86.429,86.37,9.18085437]
[1773149831942,9.18085437,86.46,86.37,9.18085437]
[1773149831943,8.71807219,86.449,86.37,9.18085437]
[1773149832543,20.809,86.496,86.35,9.18085437]
[1773149832544,8.71906165,86.439,86.35,9.18085437]
[1773149832945,8.71906165,86.432,86.38,10.418]
[1773149833342,8.71906165,86.432,86.334,20.848]
[1773149833542,8.71906165,86.421,86.37,10.419]
[1773149834346,8.71906165,86.421,86.334,20.848]
[1773149834347,8.71865924,86.419,86.362,10.42]
[1773149834550,8.71865924,86.419,86.33,9.18085437]
[1773149834946,8.71865924,86.419,86.331,14.19064452]
[1773149835143,8.71865924,86.419,86.33,9.18085437]
[1773149835655,8.71865924,86.416,86.365,10.42]
[1773149835853,8.71865924,86.416,86.33,9.18085437]
[1773149836355,2.01406955,86.45,86.308,14.19064452]
[1773149836356,8.75547143,86.389,86.308,14.19064452]
[1773149836554,8.75547143,86.389,86.295,14.19064452]
[1773149836852,8.75547143,86.389,86.29,30.03885437]
[1773149837054,9.18085437,86.39,86.323,10.425]
[1773149837055,8.75547143,86.387,86.323,10.425]
[1773149837450,8.75547143,86.369,86.311,10.426]
[1773149837846,8.75547143,86.369,86.28,9.19712845]
[1773149838948,9.19712845,86.38,86.28,9.19712845]
[1773149838949,8.72815955,86.367,86.28,9.19712845]
[1773149839146,8.72815955,86.359,86.26,23.38777297]
[1773149839350,8.72815955,86.337,86.276,10.431]
[1773149839551,8.72815955,86.337,86.244,14.19064452]
[1773149839755,14.09960558,86.396,86.23,9.19712845]
[1773149839756,8.72815955,86.319,86.23,9.19712845]
[1773149840159,8.72815955,86.319,86.255,10.433]
[1773149841251,8.72815955,86.319,86.23,9.19712845]
[1773149841252,8.72815955,86.319,86.266,10.432]
[1773149841653,623.79304619,86.346,86.28,10.43]
[1773149841654,8.72600501,86.345,86.28,10.43]
[1773149841857,8.72600501,86.345,86.25,9.19712845]
[1773149842056,8.72453758,86.339,86.25,9.19712845]
[1773149842252,9.19712845,86.34,86.239,11.84338683]
[1773149842253,8.72453758,86.325,86.239,11.84338683]
[1773149842560,8.72453758,86.319,86.239,11.84338683]
[1773149842761,8.72453758,86.319,86.276,10.431]
[1773149843452,8.72453758,86.319,86.239,11.84338683]
[1773149844352,9.19712845,86.34,86.26,9.19712845]
[1773149844353,8.69717936,86.34,86.26,9.19712845]
[1773149844552,623.79304619,86.346,86.24,5.0]
[1773149844553,623.79304619,86.346,86.28,9.19712845]
[1773149844959,623.79304619,86.346,86.295,10.428]
[1773149845559,8.69717936,86.345,86.295,10.428]
[1773149845855,8.69717936,86.345,86.28,9.19712845]
[1773149846461,8.69717936,86.345,86.303,10.427]
[1773149847061,8.69717936,86.345,86.243,20.87]
[1773149847062,623.79304619,86.346,86.312,10.426]
[1773149847456,623.79304619,86.346,86.29,9.19712845]
[1773149847457,8.71565812,86.345,86.26,9.19712845]
[1773149847856,623.79304619,86.346,86.23,9.19712845]
[1773149847857,8.71565812,86.329,86.23,9.19712845]
[1773149848055,8.71757064,86.326,86.23,9.19712845]
[1773149848255,8.71757064,86.326,86.25,9.19712845]
[1773149848456,8.71757064,86.326,86.278,10.43]
[1773149848658,623.79304619,86.346,86.25,9.19712845]
[1773149848659,8.71757064,86.345,86.25,9.19712845]
[1773149849358,8.71757064,86.333,86.25,9.19712845]
[1773149849564,623.79304619,86.346,86.27,9.19712845]
[1773149849760,8.71757064,86.353,86.244,14.19064452]
[1773149849761,8.71757064,86.353,86.307,10.427]
[1773149849961,8.71757064,86.373,86.29,9.19712845]
[1773149850767,8.71757064,86.373,86.31,9.19712845]
[1773149851063,8.71757064,86.373,86.331,10.424]
[1773149851964,8.71757064,86.373,86.291,14.19064452]
[1773149852162,8.71757064,86.373,86.29,9.19712845]
[1773149852369,10.65095075,86.417,86.264,14.19064452]
[1773149852370,8.75815384,86.339,86.264,14.19064452]
[1773149852570,8.75815384,86.339,86.278,10.43]
[1773149853571,8.75815384,86.339,86.239,11.84338683]
[1773149853572,8.75815384,86.319,86.239,11.84338683]
[1773149854171,8.75815384,86.319,86.267,10.432]
[1773149854472,8.75815384,86.319,86.239,11.84338683]
[1773149854865,8.75815384,86.319,86.241,14.19064452]
[1773149855066,8.75815384,86.319,86.239,11.84338683]
[1773149856174,8.75815384,86.319,86.27,10.431]
[1773149856371,8.75815384,86.319,86.239,11.84338683]
[1773149856967,8.75815384,86.319,86.271,10.431]
[1773149857167,8.75815384,86.319,86.239,11.84338683]
[1773149857168,8.75815384,86.319,86.25,9.19712845]
[1773149857474,8.75815384,86.319,86.239,11.84338683]
[1773149859067,8.75815384,86.319,86.261,10.432]
[1773149859275,8.73709464,86.309,86.261,10.432]
[1773149859777,8.73709464,86.329,86.268,10.431]
[1773149859977,8.73709464,86.329,86.239,11.84338683]
[1773149861275,8.73709464,86.329,86.267,10.432]
[1773149861576,8.73709464,86.329,86.239,11.84338683]
[1773149861875,8.73895173,86.309,86.239,11.84338683]
[1773149862177,8.7369858,86.289,86.193,2.48233731]
[1773149862477,3.85056015,86.287,86.193,2.48233731]
[1773149862980,3.85056015,86.285,86.228,10.436]
[1773149864372,3.85056015,86.283,86.193,2.48233731]
[1773149864567,3.85056015,86.269,86.19,9.19712845]
[1773149864771,3.85056015,86.269,86.206,10.439]
[1773149864976,3.85056015,86.269,86.191,2.48050753]
[1773149865771,3.85056015,86.268,86.206,10.439]
[1773149865972,3.85056015,86.268,86.191,2.48050753]
[1773149866178,3.85056015,86.268,86.17,9.19712845]
[1773149866179,3.85056015,86.289,86.217,2.49473833]
[1773149866677,3.85056015,86.289,86.21,9.19712845]
[1773149866678,3.85056015,86.289,86.196,2.49473833]
[1773149867272,3.76162866,86.278,86.222,10.437]
[1773149867873,3.76162866,86.278,86.196,2.49473833]
[1773149868269,3.76162866,86.299,86.211,2.67551864]
[1773149868468,3.76162866,86.297,86.237,10.435]
[1773149868684,9.19712845,86.34,86.17,2.67551864]
[1773149868685,3.76162866,86.249,86.17,2.67551864]
[1773149869076,3.76162866,86.249,86.192,10.441]
[1773149869373,9.19712845,86.23,86.15,11.87264709]
[1773149869578,3.76162866,86.222,86.156,10.445]
[1773149870281,3.76162866,86.21,86.131,2.60656899]
[1773149870882,3.76162866,86.21,86.147,10.446]
[1773149871182,3.76162866,86.21,86.131,2.60656899]
[1773149871377,3.76162866,86.206,86.145,10.446]
[1773149871678,3.76162866,86.206,86.122,197.54228574]
[1773149871883,3.76162866,86.199,86.111,2.60656899]
[1773149872081,3.76162866,86.199,86.121,2.62113378]
[1773149872278,3.76162866,86.229,86.141,2.62113378]
[1773149872681,3.76162866,86.227,86.141,2.62113378]
[1773149873080,3.76162866,86.227,86.151,2.62113378]
[1773149873383,3.76162866,86.248,86.151,2.62113378]
[1773149873787,3.76162866,86.248,86.19,10.441]
[1773149874081,3.76162866,86.248,86.171,2.62113378]
[1773149874283,3.76162866,86.266,86.192,2.67355613]
[1773149874678,10.433,86.256,86.196,10.44]
[1773149874885,3.76162866,86.255,86.18,9.19712845]
[1773149875079,3.76162866,86.255,86.181,2.67355613]
[1773149875281,3.76162866,86.269,86.19,9.19712845]
[1773149875578,3.76162866,86.269,86.191,2.67355613]
[1773149875978,3.76162866,86.269,86.16,2.56742086]
[1773149876180,3.76162866,86.269,86.132,20.896]
[1773149876181,3.76162866,86.269,86.171,2.56742086]
[1773149876579,3.76162866,86.252,86.171,2.56742086]
[1773149876777,3.76162866,86.249,86.171,2.56742086]
[1773149877290,3.76162866,86.249,86.132,20.896]
[1773149877291,3.76162866,86.249,86.151,2.56742086]
[1773149877888,3.76162866,86.249,86.171,2.56742086]
[1773149878279,3.76162866,86.249,86.185,10.442]
[1773149879685,3.76162866,86.247,86.176,10.443]
[1773149880088,3.76162866,86.247,86.15,11.76930185]
[1773149880089,3.76162866,86.243,86.185,10.442]
[1773149880286,3.76162866,86.243,86.151,2.55591982]
[1773149880688,3.76162866,86.232,86.151,2.55591982]
[1773149880889,3.76162866,86.229,86.131,2.55591982]
[1773149881385,3.76162866,86.209,86.111,2.55591982]
[1773149881596,3.76162866,86.169,86.09,2.55591982]
[1773149882089,3.76162866,86.169,86.109,10.451]
[1773149882295,3.76162866,86.169,86.09,2.55591982]
[1773149882494,3.76162866,86.191,86.101,2.58389564]
[1773149882690,3.76162866,86.191,86.121,2.58389564]
[1773149883296,3.76162866,86.191,86.134,10.448]
[1773149883496,3.76162866,86.191,86.121,2.58389564]
[1773149883795,3.76162866,86.191,86.136,10.447]
[1773149884190,3.76162866,86.191,86.121,2.58389564]
[1773149884390,10.439,86.211,86.145,10.446]
[1773149884594,3.78296266,86.21,86.121,2.58389564]
[1773149885190,3.78296266,86.208,86.145,10.446]
[1773149885394,3.78296266,86.239,86.141,2.6604689]
[1773149885794,3.78296266,86.222,86.141,2.6604689]
[1773149885994,3.78296266,86.269,86.161,2.65038346]
[1773149886197,3.78296266,86.269,86.181,2.65038346]
[1773149886395,3.78296266,86.269,86.201,2.65038346]
[1773149886697,3.78296266,86.319,86.221,2.65038346]
[1773149886902,172.67121651,86.378,86.221,2.65038346]
[1773149886903,3.78296266,86.295,86.221,13.08738346]
[1773149887103,3.78296266,86.295,86.221,2.65038346]
[1773149887495,3.78296266,86.292,86.221,2.65038346]
[1773149887702,3.78296266,86.279,86.196,2.65038346]
[1773149887896,3.78296266,86.259,86.171,2.65038346]
[1773149888404,9.19712845,86.28,86.171,2.65038346]
[1773149888405,12.98009111,86.24,86.171,2.65038346]
[1773149888602,12.98009111,86.24,86.149,2.59069575]
[1773149888603,3.78296266,86.239,86.149,2.59069575]
[1773149889305,9.19712845,86.28,86.13,9.19712845]
[1773149889306,3.78296266,86.219,86.13,9.19712845]
[1773149889497,3.78296266,86.219,86.131,2.59069575]
[1773149890009,3.78296266,86.215,86.121,2.52902406]
[1773149890605,9.19712845,86.22,86.1,9.19712845]
[1773149890606,3.78296266,86.199,86.1,9.19712845]
[1773149890805,3.78296266,86.199,86.037,162.712]
[1773149890806,3.78296266,86.149,86.074,2.52902406]
[1773149891001,3.78296266,86.164,86.074,2.52902406]
[1773149891606,3.78296266,86.149,86.053,705.11810975]
[1773149891808,3.78296266,86.129,86.053,705.11810975]
[1773149892008,3.78296266,86.129,86.054,2.61561173]
[1773149892203,3.78296266,86.152,86.054,2.61561173]
[1773149892406,312.50362142,86.187,86.054,2.61561173]
[1773149892407,3.78296266,86.139,86.054,2.61561173]
[1773149892806,3.78296266,86.139,86.065,10.456]
[1773149893098,312.50362142,86.187,86.031,2.61561173]
[1773149893099,3.78296266,86.119,86.031,2.61561173]
[1773149893303,3.78296266,86.119,86.042,10.459]
[1773149893704,3.78296266,86.119,86.031,2.61561173]
[1773149894102,3.78296266,86.119,86.054,10.457]
[1773149894305,3.78296266,86.119,86.05,9.19712845]
[1773149894504,3.78296266,86.144,86.051,2.68856037]
[1773149894810,3.78296266,86.144,86.084,10.454]
[1773149895010,3.78296266,86.129,86.051,2.68856037]
[1773149895204,9.19712845,86.15,86.036,10.46]
[1773149895205,3.78296266,86.109,86.036,10.46]
[1773149895408,3.78296266,86.109,86.031,2.68856037]
[1773149896115,3.78296266,86.107,86.031,2.68856037]
[1773149897307,3.78296266,86.107,86.033,10.46]
[1773149897508,9.19712845,86.12,86.031,2.68856037]
[1773149897709,3.78296266,86.128,86.072,10.455]
[1773149897910,3.78296266,86.128,86.052,2.74100325]
[1773149898708,3.78296266,86.128,86.031,2.72407356]
[1773149898709,9.19712845,86.12,86.031,2.72407356]
[1773149898913,3.78296266,86.119,86.036,2.72407356]
[1773149899614,3.78296266,86.109,86.036,2.72407356]
[1773149900009,316.23043815,86.157,86.036,2.72407356]
[1773149900010,3.78296266,86.129,86.036,2.72407356]
[1773149900410,3.78296266,86.129,86.055,10.457]
[1773149900613,3.78296266,86.129,86.036,2.72407356]
[1773149900815,3.78296266,86.129,86.051,2.70511296]
[1773149901017,3.78296266,86.129,86.076,10.455]
[1773149901910,3.78296266,86.151,86.086,10.454]
[1773149902119,9.25398267,86.16,86.072,2.75361375]
[1773149902619,3.78296266,86.169,86.106,10.451]
[1773149902915,3.78296266,86.169,86.072,2.75361375]
[1773149903116,3.78296266,86.169,86.091,2.75361375]
[1773149903314,613.47741812,86.183,86.051,162.685]
[1773149903315,613.47741812,86.183,86.111,2.75361375]
[1773149903708,20.865,86.264,86.11,9.25398267]
[1773149903709,3.78296266,86.215,86.131,2.75361375]
[1773149904115,3.78296266,86.215,86.151,10.446]
[1773149904718,3.78296266,86.209,86.131,2.75361375]
[1773149904917,3.78296266,86.203,86.131,2.75361375]
[1773149905419,3.78296266,86.227,86.15,10.446]
[1773149905617,307.1655093,86.233,86.081,2.70033627]
[1773149905618,3.78296266,86.179,86.081,2.70033627]
[1773149906017,3.78296266,86.179,86.121,10.449]
[1773149906212,3.78296266,86.179,86.081,2.70033627]
[1773149906413,3.78296266,86.179,86.091,2.76754345]
[1773149907414,3.78296266,86.177,86.107,10.451]
[1773149907622,3.78296266,86.177,86.091,2.76754345]
[1773149908121,10.445,86.16,86.091,2.76754345]
[1773149908325,3.78296266,86.159,86.07,9.25398267]
[1773149908520,3.78296266,86.159,86.071,2.76344708]
[1773149909015,3.78296266,86.147,86.084,10.454]
[1773149909220,3.78296266,86.147,86.071,2.76344708]
[1773149909725,3.78296266,86.133,86.074,10.455]
[1773149909924,3.78296266,86.133,86.051,2.76344708]
[1773149910520,3.78296266,86.133,86.04,9.25398267]
[1773149910521,3.78296266,86.119,86.04,9.25398267]
[1773149910925,3.78296266,86.107,86.04,10.459]
[1773149911915,3.78296266,86.105,86.03,10.46]
[1773149912122,3.78296266,86.099,86.005,2.76057574]
[1773149912628,3.78296266,86.09,86.021,10.462]
[1773149913225,3.78296266,86.088,86.005,2.76057574]
[1773149914323,3.91296739,86.077,85.957,3.93942045]
[1773149914528,3.30180487,86.039,85.957,3.93942045]
[1773149914718,3.30180487,86.039,85.961,3.93942045]
[1773149915224,3.30180487,86.039,85.972,3.93942045]
[1773149915425,3.30180487,86.039,85.92,9.25398267]
[1773149915426,3.30180487,86.039,85.947,3.93942045]
[1773149915726,3.30180487,86.039,85.875,34.74]
[1773149915727,9.25398267,86.0,85.924,3.93942045]
[1773149915938,3.28359358,85.979,85.904,2.02359112]
[1773149916124,9.25398267,85.97,85.9,3.93942045]
[1773149916325,3.28359358,85.969,85.9,3.93942045]
[1773149916526,3.28359358,85.969,85.879,10.479]
[1773149916729,12.53757625,85.95,85.879,10.479]
[1773149916924,3.28359358,85.969,85.861,3.93942045]
[1773149917230,3.28359358,85.994,85.904,3.93942045]
[1773149917621,9.25398267,85.96,85.879,3.93942045]
[1773149917818,9.25398267,85.96,85.817,163.129]
[1773149917819,9.25398267,85.94,85.855,3.93942045]
[1773149918224,9.25398267,85.94,85.858,3.93942045]
[1773149918428,3.28359358,85.959,85.861,3.93942045]
[1773149919023,3.28359358,85.959,85.873,3.93942045]
[1773149919527,19.72198267,85.97,85.891,3.93942045]
[1773149919729,3.15685751,85.969,85.87,9.25398267]
[1773149919931,9.25398267,85.93,85.843,10.483]
[1773149920123,9.25398267,85.92,85.835,3.93942045]
[1773149920728,3.02137629,85.919,85.835,3.93942045]
[1773149920925,9.25398267,85.92,85.835,3.93942045]
[1773149921326,12.27535896,85.92,85.835,3.93942045]
[1773149921524,12.27535896,85.92,85.808,2.02631885]
[1773149921525,3.02137629,85.919,85.845,3.93942045]
[1773149921724,9.25398267,85.97,85.808,2.02631885]
[1773149921725,9.25398267,85.94,85.861,3.93942045]
[1773149921924,3.02137629,85.939,85.861,3.93942045]
[1773149922225,9.25398267,85.97,85.838,10.484]
[1773149922425,3.12309463,85.919,85.839,3.93942045]
[1773149922831,9.25398267,85.92,85.839,3.93942045]
[1773149922832,3.12309463,85.917,85.839,3.93942045]
[1773149923927,9.25398267,85.93,85.841,3.93942045]
[1773149924121,12.41046495,85.94,85.841,3.93942045]
[1773149924320,3.15648228,85.939,85.841,3.93942045]
[1773149924524,10.474,85.917,85.842,10.483]
[1773149924725,10.474,85.917,85.843,3.93942045]
[1773149924932,3.15648228,85.939,85.851,3.93942045]
[1773149925131,10.473,85.925,85.851,3.93942045]
[1773149925433,3.15648228,85.939,85.851,3.93942045]
[1773149925927,3.15648228,85.938,85.853,3.93942045]
[1773149926123,9.25398267,85.94,85.853,3.93942045]
[1773149926124,3.23349077,85.939,85.853,3.93942045]
[1773149926323,9.25398267,85.98,85.831,4.03492411]
[1773149926324,3.23349077,85.919,85.831,4.03492411]
[1773149926533,3.23349077,85.919,85.832,10.485]
[1773149926727,3.23349077,85.919,85.833,4.03492411]
[1773149927029,13.70749077,85.919,85.838,10.484]
[1773149927234,13.70749077,85.919,85.833,4.03492411]
[1773149927434,3.23349077,85.919,85.833,4.03492411]
[1773149927634,3.23347255,85.902,85.833,4.03492411]
[1773149928335,13.70947255,85.902,85.833,4.03492411]
[1773149928527,3.17436962,85.901,85.833,4.03492411]
[1773149928835,3.17436962,85.901,85.739,489.832]
[1773149928836,3.17436962,85.899,85.809,4.03492411]
[1773149929032,3.17436962,85.884,85.809,14.52192411]
[1773149929234,9.25398267,85.92,85.729,163.295]
[1773149929235,3.17436962,85.879,85.787,4.03492411]
[1773149929436,3.17436962,85.879,85.808,4.03492411]
[1773149930230,3.19299005,85.869,85.785,4.03492411]
[1773149930825,3.19299005,85.869,85.764,2.02716872]
[1773149930826,3.19299005,85.889,85.807,4.03492411]
[1773149931224,9.25398267,85.87,85.807,4.03492411]
[1773149931733,9.25398267,85.87,85.74,9.25398267]
[1773149931734,9.25398267,85.85,85.784,4.03492411]
[1773149932235,3.18665128,85.849,85.787,10.49]
[1773149932435,3.18665128,85.849,85.761,4.03492411]
[1773149933327,3.18665128,85.829,85.761,4.03492411]
[1773149933735,13.67165128,85.827,85.761,4.03492411]
[1773149933940,624.98571464,85.865,85.751,4.03492411]
[1773149933941,3.18665128,85.849,85.751,4.03492411]
[1773149934229,3.18665128,85.849,85.779,10.491]
[1773149934430,3.18665128,85.849,85.771,4.03492411]
[1773149935135,3.18665128,85.849,85.775,4.03492411]
[1773149935533,10.483,85.848,85.775,4.03492411]
[1773149935735,624.98571464,85.865,85.78,9.25398267]
[1773149935932,3.35719666,85.872,85.781,4.03492411]
[1773149936131,10.48,85.869,85.794,4.03492411]
[1773149936439,3.35719666,85.872,85.801,4.03492411]